bitfinex/quotes_BTCUSD_20251219
["timestamp","ask_amount","ask_price","bid_price","bid_amount"]
[1766181985015,0.00568,88313.0,88302.0,0.21375]
[1766181985186,0.00252095,88314.0,88302.0,0.21375]
[1766181985380,0.00568,88312.0,88302.0,0.21375]
[1766181985583,0.00055,88302.0,88293.0,0.01132592]
[1766181985824,0.00055,88302.0,88294.0,0.01132579]
[1766181985825,0.00568,88302.0,88294.0,0.01132579]
[1766181986024,0.00568,88302.0,88289.0,0.21375]
[1766181986431,0.01700477,88302.0,88289.0,0.21375]
[1766181986636,0.01700477,88302.0,88290.0,0.12369]
[1766181986637,0.00568,88302.0,88290.0,0.12369]
[1766181987100,0.00568,88302.0,88291.0,0.12369]
[1766181987250,0.00568,88302.0,88294.0,0.01132579]
[1766181987461,0.005131,88302.0,88296.0,0.34876554]
[1766181987730,0.00568,88302.0,88299.0,0.01132515]
[1766181988047,0.00117329,88300.0,88299.0,0.06795074]
[1766181988289,9.5e-07,88314.0,88311.0,0.12453]
[1766181988489,9.5e-07,88314.0,88312.0,0.12453]
[1766181988490,0.00568,88313.0,88312.0,0.12453]
[1766181988777,0.01132118,88330.0,88312.0,0.12453]
[1766181988958,0.06792641,88331.0,88312.0,0.12453]
[1766181988959,0.01132105,88331.0,88312.0,0.12453]
[1766181989263,0.01132105,88331.0,88316.0,0.22343]
[1766181989264,0.01132118,88330.0,88316.0,0.22343]
[1766181989466,0.01132143,88328.0,88316.0,0.22343]
[1766181989610,4.51e-06,88317.0,88316.0,0.22343]
[1766181989812,0.000549,88316.0,88304.0,0.12453]
[1766181990016,0.01132297,88316.0,88304.0,0.12453]
[1766181990226,0.01132297,88316.0,88295.0,0.06795384]
[1766181990227,0.0113231,88315.0,88296.0,0.12453]
[1766181990444,0.01361061,88318.0,88300.0,0.12453]
[1766181991258,0.01132297,88316.0,88300.0,0.12453]
[1766181991715,0.02493333,88318.0,88300.0,0.12453]
[1766181992041,0.08154734,88318.0,88303.0,0.12453]
[1766181992216,0.0113231,88315.0,88303.0,0.12453]
[1766181992815,0.01132323,88314.0,88303.0,0.12453]
[1766181993040,0.0113231,88315.0,88303.0,0.12453]
[1766181993344,0.0113231,88315.0,88297.0,0.13021]
[1766181993345,0.000549,88303.0,88297.0,0.13021]
[1766181993525,0.000549,88303.0,88297.0,0.22911]
[1766181993732,0.00568,88308.0,88291.0,0.12453]
[1766181993733,0.01132477,88302.0,88291.0,0.12453]
[1766181993927,0.00055,88297.0,88285.0,0.13021]
[1766181994250,0.00055,88297.0,88288.0,0.23316]
[1766181994397,0.0170049,88301.0,88289.0,0.11483]
[1766181994799,0.00568,88301.0,88289.0,0.11483]
[1766181994994,0.01132502,88300.0,88289.0,0.11483]
[1766181995195,0.01132515,88299.0,88289.0,0.11483]
[1766181995449,0.01132515,88299.0,88279.0,0.01132772]
[1766181995450,0.000549,88289.0,88278.0,0.11483]
[1766181995652,0.006229,88289.0,88279.0,0.11483]
[1766181995820,0.006229,88289.0,88281.0,0.11483]
[1766181996007,0.00568,88289.0,88281.0,0.11483]
[1766181996283,0.00568,88289.0,88281.0,0.23316]
[1766181996401,0.00568,88289.0,88282.0,0.34799]
[1766181996853,0.00568,88289.0,88277.0,0.00568]
[1766181997014,0.00568,88289.0,88279.0,0.11483]
[1766181997218,0.00568,88289.0,88280.0,0.11483]
[1766181998141,0.00568,88289.0,88281.0,0.11483]
[1766181998564,0.00568,88289.0,88274.0,0.11483]
[1766181998745,0.01700643,88289.0,88275.0,0.23316]
[1766181998924,0.01132656,88288.0,88278.0,0.11483]
[1766181999125,0.01700643,88289.0,88278.0,0.11483]
[1766181999336,0.01132746,88281.0,88278.0,0.11428]
[1766181999554,0.01132746,88281.0,88259.0,0.01133028]
[1766181999555,0.0113281,88276.0,88262.0,0.23316]
[1766181999912,0.891311,88290.0,88262.0,0.23316]
[1766181999913,0.00568,88275.0,88262.0,0.23316]
[1766182000057,0.01132849,88273.0,88262.0,0.23316]
[1766182000258,0.00568,88273.0,88262.0,0.23316]
[1766182000874,0.00568,88273.0,88252.0,0.01133118]
[1766182000875,0.01132913,88268.0,88252.0,0.23316]
[1766182001082,0.01133067,88256.0,88240.0,0.23316]
[1766182001322,0.01133003,88261.0,88240.0,0.23316]
[1766182001323,0.00568,88258.0,88241.0,0.35367]
[1766182001520,0.01701041,88258.0,88242.0,0.11483]
[1766182001722,0.00568,88258.0,88242.0,0.11483]
[1766182002035,0.005131,88258.0,88249.0,0.11483]
[1766182002250,0.01132849,88273.0,88253.0,0.11483]
[1766182002450,0.00568,88272.0,88259.0,0.11483]
[1766182002651,0.00568,88272.0,88260.0,0.11483]
[1766182002842,0.01132785,88278.0,88260.0,0.12616016]
[1766182002999,0.0113281,88276.0,88260.0,0.23316]
[1766182003197,0.0113281,88276.0,88260.0,0.34799]
[1766182003415,0.06236797,88277.0,88260.0,0.34799]
[1766182003625,0.06236797,88277.0,88261.0,0.11483]
[1766182003824,0.00568,88276.0,88261.0,0.11483]
[1766182005127,0.00568,88276.0,88261.0,0.12616003]
[1766182005322,0.05663644,88283.0,88261.0,0.12616003]
[1766182005323,0.00568,88275.0,88265.0,0.23316]
[1766182005524,0.08097124,88291.0,88267.0,0.28980631]
[1766182005726,0.01132643,88289.0,88275.0,0.00055]
[1766182005993,0.0243402,88299.0,88271.0,0.01132874]
[1766182005994,0.05662945,88294.0,88271.0,0.11483]
[1766182006227,0.04536,88291.0,88275.0,0.11483]
[1766182006440,0.05668618,88291.0,88275.0,0.11483]
[1766182006551,0.01132631,88290.0,88275.0,0.11483]
[1766182006759,0.0001,88290.0,88277.0,0.11483]
[1766182006995,0.0001,88290.0,88280.0,0.11483]
[1766182007395,0.00568,88289.0,88280.0,0.11483]
[1766182007812,0.00568,88289.0,88274.0,0.11483]
[1766182007959,0.00568,88289.0,88274.0,0.23316]
[1766182008520,0.00568,88288.0,88277.0,0.11483]
[1766182009990,0.00568,88288.0,88271.0,0.00568]
[1766182009991,0.01132746,88281.0,88271.0,0.00568]
[1766182010294,0.000549,88277.0,88268.0,0.00568]
[1766182010498,0.00568,88280.0,88268.0,0.00568]
[1766182010748,0.01132772,88279.0,88268.0,0.00568]
[1766182010986,0.01700759,88280.0,88268.0,0.00568]
[1766182011572,0.95117819,88280.0,88268.0,0.00568]
[1766182011782,0.95117819,88280.0,88264.0,0.23316]
[1766182011783,0.88321236,88280.0,88264.0,0.23316]
[1766182011956,0.01700759,88280.0,88264.0,0.23316]
[1766182012754,0.01132772,88279.0,88264.0,0.23316]
[1766182013178,0.01700759,88280.0,88264.0,0.23316]
[1766182013889,0.01700759,88280.0,88263.0,0.11483]
[1766182013890,0.06796633,88279.0,88263.0,0.11483]
[1766182014202,0.07364613,88280.0,88262.0,0.00568]
[1766182014409,0.01700759,88280.0,88262.0,0.00568]
[1766182014588,0.00568,88280.0,88262.0,0.00568]
[1766182014803,0.00568,88280.0,88262.0,0.12051]
[1766182015004,0.00568,88280.0,88262.0,0.1318399]
[1766182015211,0.00568,88280.0,88262.0,0.12051]
[1766182015212,0.01132772,88279.0,88262.0,0.12051]
[1766182015412,0.01132785,88278.0,88262.0,0.12051]
[1766182015835,0.01132797,88277.0,88262.0,0.12051]
[1766182016718,0.0113281,88276.0,88262.0,0.12051]
[1766182016935,0.01132785,88278.0,88262.0,0.12051]
[1766182017137,0.0113281,88276.0,88262.0,0.12051]
[1766182017385,0.01132785,88278.0,88262.0,0.12051]
[1766182017795,0.0113281,88276.0,88262.0,0.12051]
[1766182018212,0.01132823,88275.0,88262.0,0.12051]
[1766182018410,0.00568,88274.0,88262.0,0.12051]
[1766182021055,0.00568,88274.0,88251.0,0.11483]
[1766182021056,0.000549,88262.0,88251.0,0.11483]
[1766182021205,0.00568,88267.0,88252.0,0.12051]
[1766182021407,0.00568,88267.0,88255.0,0.11483]
[1766182021613,0.00568,88267.0,88258.0,0.01133041]
[1766182021843,0.00568,88267.0,88256.0,0.11483]
[1766182022061,0.00568,88267.0,88255.0,0.2444908]
[1766182022062,0.00568,88267.0,88255.0,0.23316]
[1766182023853,0.00568,88267.0,88256.0,0.11483]
[1766182024287,0.00568,88267.0,88256.0,0.18281375]
[1766182024534,0.00513,88267.0,88258.0,0.25190041]
[1766182024731,0.00513,88267.0,88259.0,0.12123]
[1766182026914,0.01132887,88270.0,88259.0,0.12123]
[1766182027115,0.000549,88259.0,88254.0,0.12123]
[1766182027640,0.00055,88254.0,88252.0,0.00568]
[1766182028141,0.05664777,88265.0,88246.0,0.12123]
[1766182028142,0.00568,88262.0,88246.0,0.12123]
[1766182028307,0.00568,88262.0,88248.0,0.00568]
[1766182028863,0.00568,88262.0,88248.0,0.0170117]
[1766182029073,0.00568,88262.0,88248.0,0.12691]
[1766182030722,0.01133003,88261.0,88248.0,0.12691]
[1766182030902,0.0170099,88262.0,88248.0,0.12691]
[1766182031307,0.01133003,88261.0,88244.0,0.24057]
[1766182031628,0.01133003,88261.0,88245.0,0.00568]
[1766182031803,0.01133016,88260.0,88245.0,0.00568]
[1766182032218,0.01133054,88257.0,88245.0,0.005131]
[1766182032375,0.01133041,88258.0,88245.0,0.005131]
[1766182032570,0.01133054,88257.0,88245.0,0.005131]
[1766182032809,0.0113308,88255.0,88245.0,0.005131]
[1766182033006,0.01133067,88256.0,88245.0,0.005131]
[1766182033256,0.22660371,88260.0,88236.0,0.24057]
[1766182033257,0.0113308,88255.0,88236.0,0.24057]
[1766182033388,0.01133118,88252.0,88236.0,0.00568]
[1766182033836,0.01133105,88253.0,88236.0,0.00568]
[1766182034072,0.01133118,88252.0,88236.0,0.12691]
[1766182034237,0.01133131,88251.0,88236.0,0.12691]
[1766182034640,0.0113317,88248.0,88236.0,0.12691]
[1766182034846,0.0113317,88248.0,88220.0,0.01133529]
[1766182034847,0.00055,88236.0,88220.0,0.01133529]
[1766182035159,0.00568,88241.0,88229.0,0.01133414]
[1766182035344,0.00568,88241.0,88233.0,0.01133362]
[1766182035541,0.01132964,88264.0,88241.0,0.0113326]
[1766182035784,0.01132964,88264.0,88243.0,0.01133234]
[1766182035785,0.00354775,88263.0,88243.0,0.01133234]
[1766182035942,0.00354775,88263.0,88237.0,0.22665815]
[1766182035943,0.000549,88243.0,88237.0,0.13256311]
[1766182036142,0.000549,88243.0,88239.0,0.01133285]
[1766182036350,0.00568,88249.0,88239.0,0.01133285]
[1766182036551,0.00568,88249.0,88237.0,0.13256311]
[1766182036748,0.00568,88249.0,88238.0,0.01133298]
[1766182036981,0.00568,88249.0,88232.0,0.06800246]
[1766182037181,0.00568,88249.0,88234.0,0.01133349]
[1766182037582,0.00568,88249.0,88235.0,0.01133337]
[1766182038386,0.00568,88249.0,88234.0,0.01133349]
[1766182038591,0.00568,88249.0,88235.0,0.01133337]
[1766182038798,0.00568,88249.0,88236.0,0.01133324]
[1766182039618,0.00568,88249.0,88235.0,0.01133337]
[1766182039859,0.00568,88249.0,88236.0,0.01133324]
[1766182040783,0.00568,88249.0,88235.0,0.01133337]
[1766182040917,0.000549,88236.0,88233.0,0.00568]
[1766182041124,0.01701157,88249.0,88233.0,0.00568]
[1766182041125,0.00568,88249.0,88233.0,0.00568]
[1766182041340,0.00568,88249.0,88231.0,0.01133388]
[1766182041726,0.00568,88249.0,88233.0,0.01133362]
[1766182041942,0.00568,88249.0,88234.0,0.01133349]
[1766182042158,0.00568,88249.0,88235.0,0.01133337]
[1766182042365,0.00568,88249.0,88240.0,0.01133272]
[1766182042567,0.00568,88249.0,88243.0,0.12123]
[1766182042796,0.00568,88249.0,88243.0,0.13256234]
[1766182043211,0.00568,88249.0,88244.0,0.01133221]
[1766182043416,0.00568,88249.0,88243.0,0.13256234]
[1766182043767,0.05664739,88266.0,88245.0,0.24057]
[1766182043768,0.00568,88252.0,88245.0,0.24057]
[1766182043971,0.00568,88252.0,88246.0,0.13256195]
[1766182044182,0.00568,88257.0,88248.0,0.12123]
[1766182046003,0.00568,88257.0,88248.0,0.1325617]
[1766182046210,0.00568,88257.0,88248.0,0.12123]
[1766182046443,0.00568,88257.0,88247.0,0.25190182]
[1766182046599,0.00568,88257.0,88246.0,0.01133195]
[1766182046804,0.00568,88257.0,88243.0,0.11567]
[1766182047006,0.00568,88257.0,88243.0,0.01133234]
[1766182047841,0.00568,88257.0,88244.0,0.01133221]
[1766182048267,0.00568,88257.0,88243.0,0.01133234]
[1766182048778,0.00568,88257.0,88245.0,0.01133208]
[1766182049571,0.00568,88257.0,88244.0,0.01133221]
[1766182049873,0.00568,88257.0,88245.0,0.01133208]
[1766182050025,0.00568,88257.0,88244.0,0.01133221]
[1766182050608,0.00568,88257.0,88244.0,0.0679928]
[1766182050722,0.00568,88257.0,88247.0,0.01133182]
[1766182051302,0.00568,88257.0,88245.0,0.01133208]
[1766182051701,0.00568,88257.0,88244.0,0.01133221]
[1766182051882,0.00568,88257.0,88245.0,0.01133208]
[1766182052044,0.00568,88257.0,88244.0,0.01133221]
[1766182052252,0.00568,88257.0,88243.0,0.01133234]
[1766182052469,0.00568,88257.0,88244.0,0.01133221]
[1766182052685,0.00568,88257.0,88245.0,0.01133208]
[1766182052970,0.00568,88257.0,88244.0,0.01133221]
[1766182053369,0.00568,88257.0,88243.0,0.01133234]
[1766182053580,0.00568,88257.0,88248.0,0.22123]
[1766182053802,0.00568,88257.0,88242.0,0.00568]
[1766182053803,0.00568,88257.0,88242.0,0.12135]
[1766182054001,0.00568,88257.0,88244.0,0.01133221]
[1766182054317,0.00568,88257.0,88243.0,0.01133234]
[1766182054464,0.00568,88257.0,88244.0,0.01133221]
[1766182054666,0.00568,88257.0,88242.0,0.00568]
[1766182054871,0.000549,88244.0,88238.0,0.01133298]
[1766182055107,0.000549,88244.0,88239.0,0.12559]
[1766182055310,0.02494128,88256.0,88239.0,0.12559]
[1766182055516,0.01361061,88256.0,88239.0,0.12559]
[1766182055723,0.0113308,88255.0,88239.0,0.12559]
[1766182055897,0.02494128,88256.0,88239.0,0.12559]
[1766182056283,0.01361061,88256.0,88239.0,0.12559]
[1766182056485,0.01361061,88256.0,88245.0,0.01133208]
[1766182056719,0.01361061,88256.0,88246.0,0.01133195]
[1766182056883,0.01361061,88256.0,88245.0,0.01133208]
[1766182057075,0.01361061,88256.0,88244.0,0.01133221]
[1766182057275,0.01361061,88256.0,88245.0,0.01133208]
[1766182058990,0.01361061,88256.0,88244.0,0.13124221]
[1766182059397,0.01361061,88256.0,88245.0,0.01133208]
[1766182060611,0.01361061,88256.0,88244.0,0.17657049]
[1766182061214,0.01361061,88256.0,88244.0,0.11991]
[1766182061431,0.01361061,88256.0,88240.0,0.11991]
[1766182061653,0.01361061,88256.0,88240.0,0.35003]
[1766182061856,0.7726549,88250.0,88240.0,0.23012]
[1766182062534,0.7726549,88250.0,88236.0,0.11991]
[1766182062535,0.00568,88249.0,88236.0,0.11991]
[1766182062735,0.00568,88249.0,88236.0,0.12559]
[1766182062736,0.000549,88240.0,88236.0,0.12559]
[1766182062944,0.00055,88236.0,88227.0,0.11991]
[1766182063142,0.00055,88236.0,88229.0,0.11991]
[1766182063339,0.00568,88249.0,88233.0,0.11991]
[1766182063560,0.00568,88249.0,88230.0,0.23012]
[1766182063971,0.00568,88249.0,88231.0,0.11991]
[1766182064173,0.00568,88249.0,88230.0,0.23012]
[1766182064374,0.00568,88249.0,88228.0,0.00568]
[1766182067156,0.00568,88249.0,88225.0,0.11991]
[1766182067388,0.00568,88249.0,88229.0,0.00568]
[1766182068199,0.01361061,88230.0,88227.0,0.00068]
[1766182068412,0.01361061,88230.0,88211.0,0.08100813]
[1766182068413,0.000549,88227.0,88203.0,0.04536]
[1766182068592,0.01361061,88230.0,88214.0,0.05668034]
[1766182068593,0.78626551,88230.0,88214.0,0.05668034]
[1766182068801,0.78626551,88230.0,88215.0,0.00568]
[1766182069000,0.78626551,88230.0,88216.0,0.05667906]
[1766182069176,0.78626551,88230.0,88215.0,0.00568]
[1766182069769,0.000549,88215.0,88205.0,0.00175041]
[1766182070290,0.01929061,88216.0,88205.0,0.0584365]
[1766182070756,0.01929061,88216.0,88208.0,0.01133684]
[1766182071297,0.01929061,88216.0,88210.0,0.01133658]
[1766182071298,0.01874061,88216.0,88210.0,0.01133658]
[1766182071546,0.7726549,88220.0,88211.0,0.01133645]
[1766182071744,0.00568,88221.0,88212.0,0.01133632]
[1766182071948,0.00568,88221.0,88213.0,0.01133619]
[1766182072265,0.00568,88221.0,88212.0,0.01133632]
[1766182073259,0.786803,88230.0,88214.0,0.01133606]
[1766182073473,0.01361061,88230.0,88216.0,0.13124581]
[1766182073637,0.00568,88229.0,88217.0,0.23012]
[1766182073821,0.00568,88229.0,88219.0,0.11991]
[1766182075254,0.786803,88230.0,88219.0,0.11991]
[1766182075455,0.00568,88229.0,88219.0,0.11991]
[1766182077331,0.00568,88229.0,88219.0,0.13124542]
[1766182077527,0.00568,88229.0,88219.0,0.11991]
[1766182077787,0.00568,88229.0,88219.0,0.13124542]
[1766182078212,0.00568,88229.0,88219.0,0.11991]
[1766182079010,0.00568,88229.0,88218.0,0.23012]
[1766182080351,0.01701414,88229.0,88218.0,0.23012]
[1766182080552,0.77310621,88228.0,88215.0,0.11991]
[1766182081308,0.77310621,88228.0,88214.0,0.01133606]
[1766182081524,0.00568,88229.0,88215.0,0.13124594]
[1766182082759,0.00568,88229.0,88212.0,0.01133632]
[1766182082947,0.00568,88229.0,88213.0,0.01133619]
[1766182083832,0.01133427,88228.0,88211.0,0.35003]
[1766182084046,0.77310621,88223.0,88211.0,0.35003]
[1766182084211,0.01133504,88222.0,88211.0,0.00568]
[1766182084557,0.000549,88211.0,88206.0,0.00568]
[1766182084712,0.000549,88211.0,88205.0,0.00175041]
[1766182084919,0.01361061,88215.0,88205.0,0.00175041]
[1766182085317,0.01929061,88215.0,88205.0,0.00175041]
[1766182086427,0.00568,88215.0,88206.0,0.01133709]
[1766182086620,0.00568,88215.0,88205.0,0.00175041]
[1766182087770,0.00568,88215.0,88205.0,0.01308763]
[1766182087969,0.00568,88215.0,88205.0,0.00175041]
[1766182088182,0.00568,88215.0,88205.0,0.01308763]
[1766182088384,0.00568,88215.0,88205.0,0.00175041]
[1766182088986,0.00568,88215.0,88206.0,0.11778]
[1766182090742,0.00568,88215.0,88205.0,0.00175041]
[1766182092246,0.00568,88215.0,88206.0,0.01133709]
[1766182092544,0.00568,88215.0,88207.0,0.01133696]
[1766182092752,0.00568,88215.0,88206.0,0.12911709]
[1766182092968,0.01133195,88246.0,88217.0,0.01133568]
[1766182093169,0.01133285,88239.0,88226.0,0.35437]
[1766182093391,0.79804954,88240.0,88226.0,0.35437]
[1766182093392,0.79804954,88240.0,88226.0,0.23659]
[1766182093724,0.01133311,88237.0,88226.0,0.23659]
[1766182093940,0.000549,88226.0,88218.0,0.23659]
[1766182094158,0.78443945,88236.0,88217.0,0.12346]
[1766182094159,0.78444022,88230.0,88217.0,0.12346]
[1766182094333,0.00055,88218.0,88212.0,0.00568]
[1766182094735,0.77310621,88220.0,88212.0,0.00568]
[1766182097317,0.77878621,88220.0,88209.0,0.23659]
[1766182097515,0.000549,88212.0,88207.0,0.00568]
[1766182097883,0.01133568,88217.0,88205.0,0.00175041]
[1766182098086,0.77310621,88215.0,88205.0,0.00175041]
[1766182098212,0.01701529,88220.0,88205.0,0.00175041]
[1766182098213,0.84679803,88220.0,88205.0,0.00175041]
[1766182098413,0.7901215,88220.0,88205.0,0.00175041]
[1766182099237,0.77878621,88220.0,88205.0,0.00175041]
[1766182101398,0.00568,88220.0,88205.0,0.00175041]
[1766182101537,0.77878621,88220.0,88205.0,0.00175041]
[1766182101885,0.77878621,88220.0,88205.0,0.01308763]
[1766182102092,0.77878621,88220.0,88205.0,0.00175041]
[1766182102378,0.77878621,88220.0,88205.0,0.01308763]
[1766182102781,0.77878621,88220.0,88205.0,0.00175041]
[1766182102983,0.7901215,88220.0,88205.0,0.00175041]
[1766182103287,0.77878621,88220.0,88205.0,0.00175041]
[1766182104035,0.01133555,88218.0,88205.0,0.00175041]
[1766182104796,0.7901215,88220.0,88205.0,0.00175041]
[1766182104993,0.01133542,88219.0,88205.0,0.00175041]
[1766182105200,0.7901215,88220.0,88205.0,0.00175041]
[1766182105621,0.00568,88220.0,88205.0,0.00175041]
[1766182105790,0.77878621,88220.0,88205.0,0.00175041]
[1766182105987,0.7901215,88220.0,88205.0,0.00175041]
[1766182106439,0.01133568,88217.0,88205.0,0.00175041]
[1766182106616,0.06801255,88219.0,88205.0,0.00175041]
[1766182106842,0.7901215,88220.0,88205.0,0.00175041]
[1766182107839,0.01133555,88218.0,88205.0,0.00175041]
[1766182107992,0.77878621,88220.0,88205.0,0.00175041]
[1766182109306,0.01133542,88219.0,88205.0,0.00175041]
[1766182109523,0.01133555,88218.0,88205.0,0.00175041]
[1766182110488,0.01133555,88218.0,88200.0,0.12172]
[1766182110489,0.000549,88205.0,88200.0,4.1e-07]
[1766182110654,0.000549,88205.0,88194.0,0.00568]
[1766182110854,0.00568,88209.0,88194.0,0.01701863]
[1766182111055,0.00568,88209.0,88195.0,0.01133851]
[1766182111468,0.00568,88209.0,88197.0,0.01133825]
[1766182111921,0.00568,88209.0,88196.0,0.01133838]
[1766182112124,0.00568,88209.0,88198.0,0.01133812]
[1766182112466,0.00568,88209.0,88199.0,0.01133799]
[1766182112793,0.22667083,88234.0,88202.0,0.05668729]
[1766182112944,0.22667083,88234.0,88194.0,0.00568]
[1766182112945,0.77310621,88220.0,88209.0,0.245]
[1766182113148,0.77310621,88230.0,88214.0,0.01133606]
[1766182113368,0.0301727,88229.0,88215.0,0.36672]
[1766182113788,0.78671682,88240.0,88222.0,0.05667505]
[1766182114004,0.00568,88239.0,88229.0,0.01133414]
[1766182114604,0.00568,88239.0,88228.0,0.12172]
[1766182115006,0.78671682,88240.0,88228.0,0.13305427]
[1766182115183,0.00568,88239.0,88228.0,0.12172]
[1766182115626,0.77310621,88240.0,88228.0,0.12172]
[1766182115939,0.77310621,88240.0,88229.0,0.01133414]
[1766182115940,0.00568,88238.0,88229.0,0.01133414]
[1766182116635,0.00568,88238.0,88228.0,0.12172]
[1766182116791,0.01133195,88246.0,88228.0,0.12172]
[1766182116792,0.0113317,88248.0,88229.0,0.13622414]
[1766182116999,0.00568,88247.0,88229.0,0.12489]
[1766182117188,0.01133195,88246.0,88229.0,0.12489]
[1766182117587,0.01133208,88245.0,88229.0,0.12489]
[1766182118153,0.01133195,88246.0,88229.0,0.12489]
[1766182118352,0.00568,88247.0,88229.0,0.12489]
[1766182118353,0.00568,88247.0,88231.0,0.01133388]
[1766182118555,0.77310621,88241.0,88230.0,0.35601]
[1766182118769,0.02446978,88249.0,88230.0,0.35601]
[1766182118770,0.00568,88240.0,88230.0,0.35601]
[1766182118935,0.00568,88240.0,88230.0,0.36734401]
[1766182119140,0.00568,88240.0,88232.0,0.12489]
[1766182120849,0.00568,88240.0,88231.0,0.23112]
[1766182121051,0.00568,88240.0,88231.0,0.23057]
[1766182121052,0.01701272,88240.0,88231.0,0.23057]
[1766182121677,0.00568,88240.0,88231.0,0.23057]
[1766182122809,0.00568,88240.0,88223.0,0.01133491]
[1766182122810,0.00568,88240.0,88223.0,0.13622491]
[1766182123010,0.01701272,88240.0,88225.0,0.12489]
[1766182123557,0.00568,88240.0,88225.0,0.12489]
[1766182123755,0.01701272,88240.0,88221.0,0.01133516]
[1766182123959,0.77310621,88231.0,88222.0,0.00568]
[1766182124975,0.77310621,88231.0,88214.0,0.23112]
[1766182125214,0.01133427,88228.0,88215.0,0.00568]
[1766182125415,0.01133414,88229.0,88215.0,0.00568]
[1766182126398,0.01133439,88227.0,88214.0,0.23112]
[1766182126594,0.00568,88226.0,88212.0,0.12489]
[1766182127145,0.01133555,88218.0,88198.0,0.23112]
[1766182127355,0.78444279,88210.0,88198.0,0.00568]
[1766182127573,0.77310621,88210.0,88198.0,0.00568]
[1766182127785,0.01133684,88208.0,88197.0,0.0002478]
[1766182127985,0.01133684,88208.0,88191.0,0.12489]
[1766182127986,0.78444279,88210.0,88194.0,0.00568]
[1766182128421,0.01133671,88209.0,88194.0,0.00568]
[1766182128624,0.78444279,88210.0,88194.0,0.00568]
[1766182129430,0.01133671,88209.0,88190.0,0.24245915]
[1766182129614,0.77310621,88210.0,88191.0,0.01133902]
[1766182130307,0.78444279,88210.0,88192.0,0.01133889]
[1766182130757,0.78444279,88210.0,88193.0,0.01133876]
[1766182130966,0.78444279,88210.0,88192.0,0.01133889]
[1766182131177,0.78444279,88210.0,88193.0,0.01133876]
[1766182131818,0.77310621,88210.0,88193.0,0.01133876]
[1766182132689,0.01133671,88209.0,88190.0,0.35601]
[1766182132924,0.01133696,88207.0,88190.0,0.37302915]
[1766182133129,0.01133684,88208.0,88190.0,0.37302915]
[1766182133339,0.77310621,88210.0,88191.0,0.01133902]
[1766182133543,0.78444279,88210.0,88192.0,0.01133889]
[1766182133747,0.78444279,88210.0,88193.0,0.24245876]
[1766182133918,0.77310621,88210.0,88194.0,0.12489]
[1766182134809,0.78444279,88210.0,88194.0,0.12489]
[1766182135435,0.77310621,88210.0,88194.0,0.12489]
[1766182136046,0.78444279,88210.0,88194.0,0.12489]
[1766182138004,0.01133671,88209.0,88194.0,0.12489]
[1766182138239,0.78444279,88210.0,88194.0,0.12489]
[1766182138422,0.01133671,88209.0,88194.0,0.12489]
[1766182138624,0.78444279,88210.0,88194.0,0.12489]
[1766182139004,0.01133671,88209.0,88194.0,0.12489]
[1766182139402,0.773456,88210.0,88194.0,0.13622863]
[1766182139604,0.773456,88210.0,88194.0,0.12489]
[1766182140134,0.83013939,88210.0,88194.0,0.12489]
[1766182140335,0.01133671,88209.0,88194.0,0.12489]
[1766182140537,0.78479258,88210.0,88194.0,0.12489]
[1766182142220,0.78479258,88210.0,88193.0,0.23112]
[1766182142410,0.01701645,88211.0,88193.0,0.23112]
[1766182142411,0.00568,88211.0,88194.0,0.01133863]
[1766182142800,0.00568,88211.0,88194.0,0.13622863]
[1766182143607,0.00568,88211.0,88195.0,0.01133851]
[1766182143787,0.00568,88211.0,88196.0,0.01133838]
[1766182144233,0.01361061,88227.0,88211.0,0.000549]
[1766182144439,0.00568,88226.0,88212.0,0.01133632]
[1766182145074,0.00568,88226.0,88213.0,0.01133619]
[1766182145280,0.00568,88226.0,88215.0,0.01133594]
[1766182145483,0.01361061,88227.0,88214.0,0.12690606]
[1766182145687,0.00568,88226.0,88216.0,0.01133581]
[1766182146257,0.00568,88226.0,88217.0,0.01133568]
[1766182146418,0.00568,88226.0,88216.0,0.11557]
[1766182147370,0.00568,88226.0,88216.0,0.12690581]
[1766182147715,0.00568,88226.0,88217.0,0.01133568]
[1766182147942,0.01133349,88234.0,88216.0,0.12690581]
[1766182148135,0.00568,88233.0,88216.0,0.12690581]
[1766182148935,0.01701362,88233.0,88216.0,0.12690581]
[1766182149157,0.00568,88233.0,88216.0,0.12690581]
[1766182150025,0.00568,88233.0,88217.0,0.01133568]
[1766182150225,0.00568,88233.0,88216.0,0.12690581]
[1766182150781,0.00568,88233.0,88216.0,0.11557]
[1766182150981,0.01133375,88232.0,88216.0,0.11557]
[1766182151182,0.01701362,88233.0,88216.0,0.11557]
[1766182151999,0.01701362,88233.0,88216.0,0.24132581]
[1766182152180,0.00568,88233.0,88221.0,0.12690516]
[1766182152380,0.005131,88233.0,88224.0,0.12690478]
[1766182152638,0.005131,88233.0,88225.0,0.11557]
[1766182153636,0.005131,88233.0,88222.0,0.00568]
[1766182155644,0.005131,88233.0,88223.0,0.11557]
[1766182157163,0.005131,88233.0,88224.0,0.22999]
[1766182157360,0.005131,88233.0,88225.0,0.01133465]
[1766182159427,0.01133298,88238.0,88227.0,1e-06]
[1766182159800,0.01133311,88237.0,88217.0,0.22999]
[1766182160002,0.01133311,88237.0,88218.0,0.01701555]
[1766182160159,0.01133311,88237.0,88220.0,0.01133529]
[1766182160522,0.04485,88239.0,88223.0,0.01133491]
[1766182160709,0.05618285,88239.0,88222.0,0.11557]
[1766182161208,0.04485,88239.0,88222.0,0.12690504]
[1766182161433,0.04485,88239.0,88224.0,0.12690478]
[1766182161638,0.04485,88239.0,88224.0,0.11557]
[1766182161845,0.04485,88239.0,88222.0,0.01133504]
[1766182161846,0.04485,88239.0,88227.0,0.01133439]
[1766182162023,0.04485,88239.0,88228.0,0.11557]
[1766182163116,0.04485,88239.0,88226.0,0.22999]
[1766182163536,0.04485,88239.0,88228.0,0.01133427]
[1766182163750,0.04485,88239.0,88228.0,0.22999]
[1766182163950,0.04485,88239.0,88229.0,0.11557]
[1766182164364,0.00568,88239.0,88229.0,0.11557]
[1766182164569,0.00568,88239.0,88231.0,0.12690388]
[1766182164959,0.01361061,88242.0,88231.0,0.12690388]
[1766182165121,0.00568,88241.0,88231.0,0.12690388]